bitfinex-derivatives/quotes_ETHF0:USTF0_20260315
["timestamp","ask_amount","ask_price","bid_price","bid_amount"]
[1773575415563,0.56130632,2119.9,2118.8,0.29191605]
[1773575419069,0.56130632,2119.9,2118.9,0.28705536]
[1773575425273,0.56130632,2119.9,2119.0,0.28390489]
[1773575427074,0.56130632,2119.9,2119.1,0.28389221]
[1773575428875,0.56130632,2119.9,2119.3,0.28076125]
[1773575434581,0.56130632,2119.9,2119.3,0.51477756]
[1773575438384,0.56130632,2119.9,2119.4,0.27616608]
[1773575445292,0.53803657,2120.4,2119.4,0.27616608]
[1773575445592,0.53803657,2120.3,2119.4,0.27616608]
[1773575453193,0.53803657,2120.3,2119.4,7.67739619]
[1773575453392,0.53803657,2120.3,2119.5,0.25614542]
[1773575460705,0.56497296,2120.2,2119.6,0.24924507]
[1773575464208,0.56497296,2120.2,2119.5,7.40123011]
[1773575464707,6.09142036,2120.4,2119.7,0.24934644]
[1773575464909,0.56497296,2120.9,2120.2,0.47937738]
[1773575465113,0.56497296,2120.9,2120.2,7.1640436]
[1773575465313,0.56497296,2120.9,2120.0,0.47937738]
[1773575465806,0.56992272,2120.9,2120.1,0.57382491]
[1773575467006,0.00494976,2120.9,2120.1,0.57382491]
[1773575470919,0.56992272,2120.9,2120.1,0.57382491]
[1773575472522,0.56992272,2120.9,2120.2,0.57382491]
[1773575491144,0.56992272,2120.9,2120.3,0.56983583]
[1773575493239,0.56992272,2120.9,2120.4,0.56983583]
[1773575494240,0.56992272,2120.9,2120.5,0.56983583]
[1773575497639,0.56992272,2120.9,2120.5,7.94538291]
[1773575497840,0.56992272,2120.9,2120.6,0.56983583]
[1773575500541,0.00494976,2120.9,2120.6,0.56983583]
[1773575500743,0.59370172,2120.9,2120.6,0.56983583]
[1773575503144,0.59370172,2120.9,2120.5,7.94538291]
[1773575503347,0.59370172,2120.9,2120.6,0.56983583]
[1773575503939,0.58875196,2121.6,2120.8,0.56983583]
[1773575504740,0.59393766,2121.6,2120.8,0.56983583]
[1773575511950,0.59393766,2121.6,2120.4,9.88851693]
[1773575511951,0.59393766,2121.6,2120.6,7.37554708]
[1773575512350,0.59393766,2121.6,2120.5,7.94181341]
[1773575513350,0.59393766,2121.6,2120.6,0.56626633]
[1773575518756,0.59393766,2121.6,2120.7,0.56626633]
[1773575519252,0.59393766,2121.6,2120.8,0.56626633]
[1773575519753,0.59393766,2121.6,2120.9,0.56626633]
[1773575520959,0.59393766,2121.6,2120.6,7.37554708]
[1773575521255,0.59393766,2121.6,2120.6,7.94181341]
[1773575521655,0.59393766,2121.6,2120.7,0.56626633]
[1773575528665,0.55942345,2121.5,2120.7,0.56626633]
[1773575529868,0.55942345,2121.5,2120.5,0.56626633]
[1773575530568,0.55942345,2121.5,2120.4,7.94181341]
[1773575530762,6.94,2121.4,2120.4,7.94181341]
[1773575530962,0.55942345,2121.2,2120.3,7.37554708]
[1773575531163,0.55942345,2121.0,2120.0,0.0034883]
[1773575531873,0.55942345,2120.9,2120.0,0.0034883]
[1773575532372,0.55942345,2120.8,2120.0,0.0034883]
[1773575532778,0.55942345,2120.8,2120.0,0.56975463]
[1773575533276,0.55942345,2120.8,2120.0,0.0034883]
[1773575533475,7.51842345,2120.8,2120.0,0.0034883]
[1773575533676,0.55942345,2120.7,2120.0,0.0034883]
[1773575535983,0.55942345,2120.7,2119.6,0.56626633]
[1773575536280,0.55942345,2120.5,2119.5,41.36626633]
[1773575536483,0.55942345,2120.5,2119.5,0.56626633]
[1773575537080,0.55942345,2120.5,2119.5,0.57211364]
[1773575537677,0.55942345,2120.5,2119.5,0.00584731]
[1773575538877,0.60942345,2120.5,2119.5,0.00584731]
[1773575539479,6.11605319,2120.5,2119.5,0.00584731]
[1773575539678,0.60942345,2120.5,2119.5,0.00584731]
[1773575545790,0.60942345,2120.5,2119.5,0.58898738]
[1773575547693,0.57891591,2120.3,2119.5,0.58898738]
[1773575549590,0.57891591,2120.4,2119.5,0.58898738]
[1773575550397,0.62891591,2120.5,2119.5,0.58898738]
[1773575554998,0.62891591,2120.5,2119.6,0.58314007]
[1773575556797,0.05,2120.5,2119.6,0.58314007]
[1773575558295,0.62891591,2120.5,2119.6,0.58314007]
[1773575577222,0.62891591,2120.5,2119.7,0.56111473]
[1773575578822,0.62891591,2120.5,2119.8,0.56111473]
[1773575581820,0.05,2120.5,2119.9,0.56111473]
[1773575582020,0.05,2120.5,2120.0,0.56111473]
[1773575595539,0.61497829,2120.5,2120.0,0.56111473]
[1773575612153,0.61497829,2120.5,2120.0,7.93666181]
[1773575612353,0.61497829,2120.5,2120.1,0.55966065]
[1773575620356,0.05,2120.5,2120.1,0.55966065]
[1773575631058,0.61858532,2120.5,2120.0,7.93520773]
[1773575632164,0.61858532,2120.5,2120.1,0.58457035]
[1773575634264,0.61858532,2120.5,2120.0,7.96011743]
[1773575634664,0.61858532,2120.5,2120.0,0.58457035]
[1773575634865,0.61858532,2120.5,2119.9,7.37554708]
[1773575635164,0.61858532,2120.5,2119.9,7.96011743]
[1773575636664,0.61858532,2120.5,2120.0,0.58457035]
[1773575642472,0.61858532,2120.5,2119.9,7.96011743]
[1773575643076,0.61858532,2120.5,2120.0,0.58457035]
[1773575659085,0.05,2120.5,2120.0,0.58457035]
[1773575659592,0.05,2120.5,2120.1,0.58457035]
[1773575662286,5.54012162,2121.0,2120.1,0.58457035]
[1773575662287,0.53633492,2120.9,2120.1,0.58457035]
[1773575662589,0.53633492,2121.1,2120.3,0.57154165]
[1773575674501,0.53633492,2121.1,2120.2,0.57154165]
[1773575674697,0.53633492,2121.1,2120.0,7.94708873]
[1773575674901,0.53633492,2121.1,2120.1,0.57154165]
[1773575676192,0.53633492,2121.0,2120.1,0.57154165]
[1773575684107,0.53633492,2120.9,2120.1,0.57154165]
[1773575694314,0.53633492,2120.9,2120.2,0.54363461]
[1773575695817,0.56441602,2121.1,2120.2,0.54363461]
[1773575696210,0.56441602,2121.1,2120.3,0.54363461]
[1773575702519,0.56441602,2121.1,2120.2,0.54363461]
[1773575706115,0.56441602,2121.0,2120.2,0.54363461]
[1773575710422,0.56441602,2120.9,2120.1,7.37554708]
[1773575710817,0.56441602,2120.9,2120.1,7.91918169]
[1773575711620,0.56441602,2120.9,2120.1,0.54363461]
[1773575713820,0.56441602,2120.8,2120.1,0.54363461]
[1773575736442,0.53619063,2121.0,2120.1,0.54363461]
[1773575737543,0.53619063,2121.0,2120.2,0.59080249]
[1773575764255,0.53619063,2121.0,2120.3,0.53607646]
[1773575774765,0.53619063,2121.0,2120.2,6.44800208]
[1773575774967,0.55270328,2120.7,2119.9,0.53607646]
[1773575775166,0.55270328,2120.6,2119.9,0.53607646]
[1773575775367,0.55270328,2120.5,2119.9,0.53607646]
[1773575786178,0.55270328,2120.5,2119.6,0.58614217]
[1773575789374,0.59082424,2120.4,2119.6,0.58614217]
[1773575802888,0.59082424,2120.6,2119.6,0.58614217]
[1773575803291,0.59082424,2120.6,2119.7,0.58614217]
[1773575807391,0.59082424,2120.5,2119.7,0.58614217]
[1773575821307,0.5394028,2120.4,2119.7,0.58614217]
[1773575824611,0.5394028,2120.4,2119.7,0.57341778]
[1773575824811,0.5394028,2120.3,2119.7,0.57341778]
[1773575831314,0.5394028,2120.5,2119.7,0.57341778]
[1773575836318,0.5394028,2120.4,2119.7,0.57341778]
[1773575837622,0.5394028,2120.3,2119.7,0.57341778]
[1773575842921,0.5362523,2120.4,2119.7,0.57341778]
[1773575843322,6.1296539,2120.4,2119.7,0.57341778]
[1773575844217,0.5362523,2120.3,2119.7,0.57341778]
[1773575858233,0.5362523,2120.3,2119.6,0.5351386]
[1773575858832,0.5362523,2120.3,2119.5,7.39556533]
[1773575859031,0.5362523,2120.3,2119.5,7.93070393]
[1773575859230,0.5362523,2120.3,2119.5,0.00584731]
[1773575860236,0.5362523,2120.2,2119.5,0.00584731]
[1773575860534,0.5362523,2120.1,2119.5,0.00584731]
[1773575860730,0.53980517,2120.1,2119.5,0.00584731]
[1773575870052,0.53980517,2120.1,2119.5,0.54098591]
[1773575872560,0.56447072,2120.0,2119.5,0.54098591]
[1773575887063,0.56802359,2120.1,2119.5,0.54098591]
[1773575924795,0.56802359,2120.1,2119.5,0.58877353]
[1773575929493,0.56802359,2120.1,2119.5,0.00584731]
[1773575930100,6.16215058,2120.1,2119.5,0.00584731]
[1773575930299,0.56802359,2120.1,2119.5,0.00584731]
[1773575930495,7.75502359,2120.1,2119.5,0.00584731]
[1773575930896,0.554873,2120.0,2119.5,0.00584731]
[1773575933398,0.554873,2120.0,2119.3,0.58292622]
[1773575933703,0.55171664,2119.9,2119.3,0.58292622]
[1773575934298,0.55171664,2119.9,2119.3,0.5863718]
[1773575940613,0.55171664,2119.9,2118.8,11.15676934]
[1773575940614,0.55171664,2119.9,2119.2,0.56174132]
[1773575941712,0.55171664,2119.9,2119.2,0.56520541]
[1773575943429,0.55171664,2119.9,2119.2,0.00346409]
[1773575980651,6.14781976,2120.0,2119.2,0.58315633]
[1773575980845,0.55566021,2120.0,2119.3,7.96941026]
[1773575981051,0.55566021,2120.0,2119.4,0.57969224]
[1773575994159,0.55221463,2120.0,2119.4,0.57969224]
[1773576000569,0.00355287,2120.1,2119.4,0.57969224]
[1773576000770,0.53754128,2120.1,2119.4,0.57969224]
[1773576003875,0.53754128,2120.1,2119.5,0.58139462]
[1773576004973,0.53754128,2120.1,2119.3,7.96681438]
[1773576005168,0.53754128,2120.1,2119.3,0.57709636]
[1773576010175,0.34873736,2120.1,2119.3,7.96681438]
[1773576010383,0.34873736,2120.1,2119.4,0.59166518]
[1773576011282,0.35446419,2120.1,2119.4,0.59166518]
[1773576017491,0.35446419,2120.1,2119.2,48.54761196]
[1773576017791,0.35446419,2120.1,2119.3,0.59166518]
[1773576017993,0.53398841,2120.0,2119.3,0.59166518]
[1773576020695,0.53971524,2120.1,2119.3,0.59166518]
[1773576027197,0.53971524,2120.1,2119.5,0.55390318]
[1773576035101,0.00572683,2120.1,2119.5,0.55390318]
[1773576035701,0.59271824,2120.1,2119.5,0.55390318]
[1773576062725,0.59271824,2120.1,2119.4,37.9905623]
[1773576062918,0.59271824,2120.1,2119.4,30.578]
[1773576063119,0.59271824,2120.1,2119.4,31.15758292]
[1773576063822,0.59271824,2120.1,2119.4,30.578]
[1773576070831,0.59271824,2120.1,2119.4,31.15758292]
[1773576072029,0.59271824,2120.1,2119.4,30.578]
[1773576072230,0.59271824,2120.1,2119.4,31.15758292]
[1773576072531,0.53759853,2120.0,2119.4,31.15758292]
[1773576073128,0.53759853,2119.9,2119.4,31.15758292]
[1773576073530,0.53759853,2119.9,2119.5,0.57958292]
[1773576074430,0.53759853,2119.9,2119.2,41.38304701]
[1773576074637,0.53759853,2119.9,2119.2,0.58304701]
[1773576075233,0.53759853,2119.9,2119.2,0.00346409]
[1773576075431,0.53759853,2119.8,2119.2,0.00346409]
[1773576079635,0.53759853,2119.8,2119.0,0.57958292]
[1773576080541,0.53759853,2119.8,2119.0,0.58492519]
[1773576084042,0.53759853,2119.8,2119.0,0.00534227]
[1773576087750,0.54875059,2119.7,2119.0,0.00534227]
[1773576087939,0.54875059,2119.7,2118.7,0.57274417]
[1773576088446,0.54875059,2119.5,2118.4,0.57274417]
[1773576088747,7.408,2119.4,2118.4,0.57274417]
[1773576089043,0.54875059,2119.3,2118.6,0.57274417]
[1773576093653,0.54795059,2119.3,2118.6,0.57274417]
[1773576100254,0.54795059,2119.3,2118.4,0.57664854]
[1773576104161,0.54875059,2119.2,2118.4,0.57664854]
[1773576105067,0.54875059,2119.1,2118.1,0.57274417]
[1773576105359,0.54875059,2119.0,2118.2,0.57274417]
[1773576105964,0.54875059,2119.0,2118.2,0.57674602]
[1773576116869,9.61932359,2119.3,2118.2,0.57674602]
[1773576117070,0.55737249,2119.1,2118.2,0.57674602]
[1773576117370,0.55737249,2119.0,2118.2,0.57674602]
[1773576117568,0.55737249,2118.9,2118.2,0.57674602]
[1773576121868,7.98737249,2118.9,2118.2,0.00400185]
[1773576122076,0.55737249,2118.8,2118.2,0.00400185]
[1773576122482,0.55737249,2118.7,2117.9,0.58726285]
[1773576123579,0.55737249,2118.7,2117.9,0.59099593]
[1773576127681,0.55737249,2118.7,2117.9,0.00373308]
[1773576127883,0.55737249,2118.6,2117.5,0.58726285]
[1773576128386,0.55737249,2118.6,2117.5,41.38726285]
[1773576128586,0.55737249,2118.6,2117.6,0.58726285]
[1773576128786,0.56224598,2118.6,2117.6,0.59261769]
[1773576129085,0.55737249,2118.5,2117.6,0.59261769]
[1773576129285,0.55737249,2118.3,2117.6,0.59261769]
[1773576129484,0.55737249,2118.5,2117.6,0.59261769]
[1773576129687,0.55737249,2118.4,2117.6,0.59261769]
[1773576132488,0.55737249,2118.4,2117.8,0.58726285]
[1773576133391,0.55737249,2118.5,2117.8,0.58726285]
[1773576135390,0.55737249,2118.5,2117.6,0.59261769]
[1773576139089,0.55737249,2118.4,2117.6,0.59261769]
[1773576147099,0.55176865,2118.6,2117.6,0.59261769]
[1773576150304,0.54689516,2118.5,2117.6,0.59261769]
[1773576151802,0.54689516,2118.4,2117.6,0.59261769]
[1773576152106,0.54689516,2118.3,2117.6,0.59261769]
[1773576152303,0.54689516,2118.2,2117.6,0.59261769]
[1773576152603,0.54689516,2118.2,2117.4,0.3817819]
[1773576153707,0.54689516,2118.2,2117.4,0.38552115]
[1773576157412,0.54689516,2118.1,2117.4,0.38552115]
[1773576158404,0.54689516,2118.0,2117.4,0.38552115]
[1773576163113,0.54689516,2118.0,2117.4,0.00373925]
[1773576167411,3.95328587,2118.2,2117.4,0.00373925]
[1773576167412,0.54689516,2117.9,2117.4,0.00373925]
[1773576169315,0.54689516,2117.9,2116.9,0.38373509]
[1773576169516,0.54689516,2117.8,2116.9,0.38373509]
[1773576169715,0.54689516,2117.8,2117.1,0.38373509]
[1773576170314,0.54689516,2117.8,2117.1,0.38866846]
[1773576175019,0.54689516,2117.8,2117.1,0.00493337]
[1773576176018,0.57556792,2117.7,2117.1,0.00493337]
[1773576176413,0.57556792,2117.7,2116.8,40.8]
[1773576176618,0.57556792,2117.7,2116.7,0.40393758]
[1773576177015,0.57556792,2117.7,2116.8,0.40552528]
[1773576177418,0.57556792,2117.7,2116.8,0.40944198]
[1773576189133,0.57556792,2117.7,2116.9,0.40603234]
[1773576200240,0.57556792,2117.7,2117.0,0.4123642]
[1773576200438,0.57556792,2117.7,2117.1,0.4123642]
[1773576202729,0.53905626,2118.0,2117.1,0.4123642]
[1773576202934,5.69016295,2118.1,2117.1,0.4123642]
[1773576202935,0.53905626,2117.9,2117.1,0.4123642]
[1773576203135,0.53905626,2117.9,2117.2,0.42325945]
[1773576204034,0.53905626,2117.9,2117.3,0.42257882]
[1773576217043,0.53905626,2118.2,2117.3,0.42257882]
[1773576219050,0.53905626,2118.2,2117.4,0.41214199]
[1773576223851,0.53905626,2118.2,2117.2,7.81832168]
[1773576226351,0.53905626,2118.2,2117.3,0.40661924]
[1773576228954,0.53905626,2118.2,2117.4,0.40651976]
[1773576230153,0.53905626,2118.2,2117.5,0.40643375]
[1773576233358,0.53905626,2118.2,2117.4,7.81832197]
[1773576236356,0.53905626,2118.2,2117.5,0.40565251]
[1773576241461,0.53905626,2118.2,2117.5,7.81821481]
[1773576241662,0.53905626,2118.2,2117.6,0.40525052]
[1773576244454,0.53905626,2118.2,2117.7,0.40509354]
[1773576244655,0.00487349,2118.6,2117.8,0.58213299]
[1773576244858,0.54465027,2118.6,2117.9,0.58213299]
[1773576245266,0.54465027,2118.6,2118.0,40.8]
[1773576245564,0.54465027,2118.6,2118.1,0.58213299]
[1773576246264,0.53480092,2118.6,2118.1,0.58213299]
[1773576246665,0.53977678,2118.7,2118.1,0.58213299]
[1773576247256,0.54578095,2118.7,2118.1,0.58213299]
[1773576251862,0.54578095,2118.7,2117.8,0.58213299]
[1773576252061,0.54578095,2118.7,2117.9,0.58213299]
[1773576252567,0.54578095,2118.7,2118.0,0.58213299]
[1773576257873,0.54578095,2118.7,2118.1,40.8]
[1773576258074,0.54578095,2118.7,2118.2,0.58213299]
[1773576269375,0.55894998,2119.0,2118.2,0.58213299]
[1773576270378,0.56359679,2119.0,2118.3,0.57442759]
[1773576270580,0.56359679,2119.0,2118.3,0.57982807]
[1773576299195,0.56359679,2119.0,2118.4,0.57834137]
[1773576301999,0.56149679,2119.0,2118.4,0.57834137]
[1773576308213,0.56149679,2119.0,2118.5,0.57834137]
[1773576315817,0.56149679,2119.0,2118.4,0.23279425]
[1773576316016,0.56149679,2119.0,2118.4,0.57834137]
[1773576317619,0.56149679,2119.0,2118.3,6.02322813]
[1773576317814,0.59107346,2118.8,2118.1,0.57834137]
[1773576318010,0.59107346,2118.7,2118.1,0.57834137]
[1773576318216,0.59107346,2118.7,2118.1,41.37834137]
[1773576318909,0.59107346,2118.7,2118.1,0.58180776]
[1773576320221,0.59107346,2118.7,2117.7,41.37834137]
[1773576320610,0.59107346,2118.7,2117.8,0.57834137]
[1773576321119,0.59107346,2118.7,2117.8,0.58348496]
[1773576322216,0.55398549,2118.6,2117.8,0.58348496]
[1773576322412,0.55398549,2118.5,2117.8,0.58348496]
[1773576331122,0.55398549,2118.5,2117.8,0.00514359]
[1773576331319,0.55398549,2118.5,2117.8,0.56290626]
[1773576333620,0.55398549,2118.5,2117.8,0.00514359]
[1773576339525,0.55398549,2118.4,2117.8,0.00514359]
[1773576344633,0.55258549,2118.4,2117.8,0.00514359]
[1773576345734,7.93058549,2118.4,2117.8,0.00514359]
[1773576345935,0.55398549,2118.3,2117.8,0.00514359]
[1773576347238,6.30811738,2118.3,2117.8,0.00514359]
[1773576347538,0.55398549,2118.2,2117.6,0.55776267]
[1773576348238,6.30811738,2118.3,2117.6,0.55776267]
[1773576348538,0.55398549,2118.3,2117.6,0.56257482]
[1773576362949,10.27715662,2118.5,2117.6,0.56257482]
[1773576363248,6.31349208,2118.4,2117.6,0.56257482]
[1773576363446,5.75462303,2118.3,2117.6,0.56257482]
[1773576363646,0.55886905,2118.3,2117.6,0.56257482]
[1773576388178,0.54769269,2118.1,2117.3,40.8]
[1773576388373,0.54769269,2118.1,2117.2,0.58090668]
[1773576388574,0.54769269,2118.0,2117.2,0.58090668]
[1773576388885,0.54769269,2118.0,2117.2,41.38090668]
[1773576389084,0.54769269,2118.0,2117.3,0.58090668]
[1773576389285,0.54769269,2117.9,2117.3,0.58090668]
[1773576396491,0.54769269,2118.0,2117.3,0.58090668]
[1773576398092,0.54769269,2118.3,2117.3,0.58090668]
[1773576398489,0.54769269,2118.2,2117.3,0.58090668]
[1773576401795,0.54769269,2118.2,2117.3,31.50190668]
[1773576401995,0.54769269,2118.2,2117.4,0.58090668]
[1773576406396,0.54769269,2118.1,2117.4,0.58090668]
[1773576427714,0.55910232,2118.2,2117.4,0.58090668]
[1773576430212,0.55910232,2118.1,2117.4,0.58090668]
[1773576439335,0.55910232,2118.0,2117.4,0.58090668]
[1773576451139,0.55910232,2118.0,2117.2,41.35102682]
[1773576451446,0.55910232,2118.0,2117.2,0.55102682]
[1773576453647,0.55910232,2118.0,2117.2,0.00564972]
[1773576458347,0.53777441,2117.9,2117.2,0.00564972]
[1773576462756,0.53777441,2117.9,2117.2,0.55102682]
[1773576483270,0.54766349,2117.8,2117.2,0.55102682]
[1773576484769,0.54766349,2117.7,2117.0,0.58699827]
[1773576484969,0.54766349,2117.7,2116.9,41.38699827]
[1773576485170,0.54766349,2117.7,2117.0,0.58699827]
[1773576485970,0.54766349,2117.7,2117.0,0.59155713]
[1773576488277,0.54766349,2117.7,2117.0,0.00455886]
[1773576490483,0.54766349,2117.7,2117.0,0.59155713]
[1773576490879,0.54766349,2117.6,2117.0,0.59155713]
[1773576493182,0.54766349,2117.5,2117.0,0.00455886]
[1773576493383,0.55364618,2117.5,2117.0,0.00455886]
[1773576495292,0.55364618,2117.5,2116.8,0.58699827]
[1773576496381,0.55364618,2117.5,2116.8,0.59179282]
[1773576505902,0.55120419,2117.4,2116.8,0.59179282]
[1773576515008,0.55120419,2117.4,2116.6,0.57166787]
[1773576515604,0.55120419,2117.3,2116.6,0.57166787]
[1773576516006,0.55120419,2117.3,2116.6,0.57632236]
[1773576520113,0.55120419,2117.3,2116.6,0.00465449]
[1773576520316,0.55120419,2117.3,2116.4,40.8]
[1773576520912,0.55120419,2117.3,2116.4,0.57166787]
[1773576521116,0.55120419,2117.2,2116.4,0.57166787]
[1773576521419,0.55120419,2117.1,2116.4,0.00417598]
[1773576522117,0.55120419,2117.0,2116.4,0.57584385]
[1773576531122,0.55120419,2117.3,2116.4,0.57584385]
[1773576531323,6.30012913,2117.3,2116.4,0.57584385]
[1773576531522,5.74658651,2117.2,2116.4,0.57584385]
[1773576531828,0.55120419,2117.3,2116.4,0.57584385]
[1773576532721,0.55120419,2117.3,2116.6,0.55745339]
[1773576534923,6.30314275,2117.4,2116.6,0.55745339]
[1773576535122,0.55661781,2117.4,2116.6,0.55745339]
[1773576547533,0.55661781,2117.3,2116.6,0.55745339]
[1773576559552,6.31099591,2117.3,2116.6,0.55745339]
[1773576559755,0.55661781,2117.2,2116.6,0.55745339]
[1773576601277,0.55661781,2117.2,2116.5,0.53679341]
[1773576601481,0.53548783,2117.1,2116.5,0.53679341]
[1773576602982,0.53548783,2117.1,2116.4,0.00417598]
[1773576603381,0.53548783,2117.0,2116.4,0.00417598]
[1773576604275,5.75436019,2117.0,2116.4,0.00417598]
[1773576604478,0.53548783,2116.9,2115.9,0.53679341]
[1773576604673,0.53548783,2116.8,2115.9,0.53679341]
[1773576605488,0.53548783,2116.8,2115.9,0.54114413]
[1773576610590,0.53548783,2116.8,2116.0,40.8]
[1773576610787,0.53548783,2116.8,2116.1,0.53679341]
[1773576615193,0.53548783,2116.8,2116.0,0.53679341]
[1773576623494,0.53548783,2116.8,2115.9,0.00435072]
[1773576623690,0.53548783,2116.8,2115.9,0.54639757]
[1773576631607,6.28506027,2116.8,2115.9,0.54639757]
[1773576632009,5.74957244,2116.7,2115.9,0.54639757]
[1773576632204,0.53548783,2116.8,2115.9,0.54639757]
[1773576635909,0.57368449,2116.7,2115.9,0.54639757]
[1773576637009,0.57368449,2116.6,2115.9,0.54639757]
[1773576637211,0.57368449,2116.5,2115.9,0.54639757]
[1773576648922,0.57368449,2116.4,2115.9,0.54639757]
[1773576649523,0.57368449,2116.3,2115.9,0.54639757]
[1773576658431,0.57368449,2116.3,2115.9,1e-08]
[1773576658629,0.57368449,2116.3,2115.8,0.53873193]
[1773576659530,0.57368449,2116.3,2115.8,0.54313244]
[1773576662528,8.42295988,2116.7,2115.8,0.54313244]
[1773576663434,8.42695988,2116.7,2115.8,0.54313244]
[1773576663634,0.55495988,2116.8,2115.8,0.54313244]
[1773576664235,7.873,2116.9,2115.8,0.54313244]
[1773576664536,8.42795988,2116.9,2115.8,0.54313244]
[1773576665936,0.55495988,2116.9,2115.8,0.54313244]
[1773576667340,0.55495988,2116.9,2115.9,0.53873193]
[1773576687855,0.55495988,2116.9,2115.9,0.54106712]
[1773576690957,0.56662239,2116.8,2115.9,0.54106712]
[1773576691154,0.56662239,2116.7,2115.9,0.54106712]
[1773576691353,0.56662239,2116.6,2115.9,0.54106712]
[1773576692051,0.56662239,2116.6,2115.8,0.54546763]
[1773576692256,0.56662239,2116.5,2115.8,0.54546763]
[1773576697472,0.56662239,2116.5,2115.8,0.00440051]
[1773576697866,0.56662239,2116.5,2115.8,0.54546763]
[1773576703065,0.56662239,2116.4,2115.8,0.54546763]
[1773576712283,0.56472295,2116.3,2115.8,0.54546763]
[1773576716673,0.56472295,2116.4,2115.8,0.54546763]
[1773576723278,0.56472295,2116.5,2115.8,0.54546763]
[1773576723779,6.33564618,2116.5,2115.8,0.54546763]
[1773576724075,0.56472295,2116.5,2115.8,0.54546763]
[1773576724581,6.33588176,2116.7,2115.8,0.54546763]
[1773576724780,0.56472295,2116.7,2115.8,0.54546763]
[1773576725985,0.56472295,2116.7,2115.9,0.55002612]
[1773576726279,6.33632944,2116.7,2115.9,0.55002612]
[1773576726487,0.56472295,2116.7,2115.9,0.55002612]
[1773576729082,6.33456854,2116.9,2116.1,0.55002612]
[1773576729283,5.76984559,2116.8,2116.1,0.55002612]
[1773576729483,0.56472295,2116.9,2116.1,0.55002612]
[1773576748699,0.58179968,2117.0,2116.3,0.56703491]
[1773576756497,0.58179968,2116.9,2116.3,0.56703491]
[1773576781616,0.56601991,2116.8,2116.3,0.56703491]
[1773576800942,0.56601991,2116.8,2116.2,0.550404]
[1773576834373,5.77625655,2116.7,2115.9,0.56083776]
[1773576834577,0.53631117,2116.5,2115.9,0.56083776]
[1773576863089,0.53631117,2116.5,2115.8,0.00440051]
[1773576863294,0.53631117,2116.5,2115.7,0.58107597]
[1773576863295,0.58790599,2116.3,2115.7,0.58107597]
[1773576863694,0.58790599,2116.2,2115.7,0.58107597]
[1773576864297,0.58790599,2116.2,2115.7,0.58549225]
[1773576864600,0.58790599,2116.1,2115.7,0.58549225]
[1773576865292,0.58790599,2116.1,2115.7,0.00441628]
[1773576865497,0.58790599,2116.1,2115.6,0.58107597]
[1773576866499,0.58790599,2116.1,2115.6,0.58613289]
[1773576867294,0.58790599,2116.1,2115.3,0.58107597]
[1773576867889,0.58790599,2116.2,2115.5,0.58107597]
[1773576868298,0.58790599,2116.2,2115.5,0.58653383]
[1773576872598,6.37862914,2116.2,2115.5,0.58653383]
[1773576872798,0.58790599,2116.2,2115.5,0.58653383]
[1773576893209,5.78235497,2116.2,2115.5,0.58653383]
[1773576893414,6.35667873,2116.2,2115.5,0.58653383]
[1773576893812,0.57432376,2116.3,2115.5,0.58653383]
[1773576894113,6.35667873,2116.3,2115.5,0.58653383]
[1773576894313,0.57432376,2116.3,2115.5,0.58653383]
[1773576895711,0.57432376,2116.4,2115.5,0.58653383]
[1773576899118,0.57432376,2116.4,2115.6,0.57564249]
[1773576905217,0.57432376,2116.4,2115.5,0.00545786]
[1773576905420,0.57432376,2116.4,2115.6,0.57564249]
[1773576905920,5.8002163,2116.4,2115.8,0.57564249]
[1773576906119,0.57432376,2116.5,2115.8,0.57564249]
[1773576906720,0.57432376,2116.4,2115.8,0.57564249]
[1773576906921,0.57432376,2116.3,2115.8,0.57564249]
[1773576920630,0.57432376,2116.5,2115.8,0.57564249]
[1773576921234,0.57432376,2116.4,2115.8,0.57564249]
[1773576923635,0.5878655,2116.3,2115.7,0.558206]
[1773576924335,0.5878655,2116.2,2115.7,0.558206]
[1773576930443,0.5878655,2116.2,2115.3,0.558206]
[1773576930635,0.5878655,2116.2,2115.1,0.558206]
[1773576930636,0.5878655,2116.0,2115.1,0.558206]
[1773576930835,0.5878655,2115.9,2115.1,0.558206]
[1773576931035,0.5878655,2115.9,2115.2,0.558206]
[1773576931635,0.5914929,2115.9,2115.2,0.5615694]
[1773576937740,0.5878655,2116.1,2115.4,0.558206]
[1773576938941,0.59288273,2116.1,2115.4,0.558206]
[1773576943340,0.59288273,2116.1,2115.2,0.5615694]
[1773576947350,0.59288273,2116.1,2115.2,0.0033634]
[1773576948748,8.75088273,2116.1,2115.2,0.0033634]
[1773576949048,0.5878655,2116.0,2115.2,0.0033634]
[1773576949846,6.40689389,2116.0,2115.2,0.0033634]
[1773576950050,0.5878655,2115.9,2115.2,0.0033634]
[1773576950348,0.5878655,2115.9,2115.2,0.5615694]
[1773576950549,0.5878655,2115.8,2115.2,0.5615694]
[1773576966052,0.54135893,2115.7,2115.2,0.5615694]
[1773576966248,0.54135893,2115.7,2115.2,0.0033634]
[1773576966656,0.54135893,2115.7,2115.2,0.55122602]
[1773576967560,0.54135893,2115.7,2115.1,0.54786262]
[1773576968759,0.54135893,2115.7,2115.1,0.55268512]
[1773576970553,0.54135893,2115.7,2115.0,41.34786262]
[1773576970758,0.54135893,2115.7,2115.0,1e-08]
[1773576971152,0.54135893,2115.7,2115.1,0.54786262]
[1773576971559,0.54135893,2115.7,2115.1,0.5537466]
[1773576972051,5.82260708,2115.8,2115.1,0.5537466]
[1773576972251,0.54135893,2115.9,2115.1,0.5537466]
[1773576972453,0.54135893,2115.8,2115.1,0.5537466]
[1773576998285,0.55391604,2115.7,2115.1,0.5537466]
[1773576998987,6.37894049,2115.7,2115.1,0.5537466]
[1773576999187,0.55391604,2115.7,2115.1,0.5537466]
[1773577002479,6.38472637,2115.7,2115.1,0.5537466]
[1773577002681,0.55391604,2115.7,2115.1,0.5537466]
[1773577004080,5.82155384,2115.8,2115.1,0.5537466]
[1773577004278,0.55391604,2115.9,2115.1,0.5537466]
[1773577004483,6.37523178,2115.9,2115.1,0.5537466]
[1773577004686,5.82131574,2115.9,2115.1,0.5537466]
[1773577004887,0.55391604,2116.0,2115.1,0.5537466]
[1773577006586,0.55391604,2116.0,2115.3,0.57798299]
[1773577015589,0.58583887,2116.1,2115.3,0.57798299]
[1773577016790,0.00501723,2116.1,2115.3,0.57798299]
[1773577019191,0.58082164,2116.4,2115.5,0.56924468]
[1773577020394,0.58608187,2116.4,2115.5,0.56924468]
[1773577022196,0.00526023,2116.4,2115.7,0.56924468]
[1773577023396,0.58082164,2116.6,2115.9,0.56924468]
[1773577023596,0.58082164,2117.1,2116.0,0.56924468]
[1773577023997,0.58082164,2117.0,2116.0,0.56924468]
[1773577024394,0.58444203,2117.0,2116.0,0.56924468]
[1773577024894,0.58444203,2117.0,2116.2,0.56924468]
[1773577030204,0.58444203,2117.0,2116.4,0.56924468]
[1773577035798,0.58444203,2117.0,2115.9,30.98714481]
[1773577035799,0.00362039,2117.0,2116.6,0.56924468]
[1773577035998,0.58082164,2117.2,2116.6,0.5738428]
[1773577037004,0.58466387,2117.2,2116.6,0.5738428]
[1773577055525,0.5360979,2117.4,2116.6,0.5738428]